lending/lending_fUSD_20240705
["ID","MTS","AMOUNT","RATE_DAILY","PERIOD"]
[331292117,1720188643852,-211.372286,0.000199,2]
[331292119,1720188643861,-151.0,0.000199,2]
[331292121,1720188643871,-347.62621,0.000199,2]
[331292123,1720188643880,-243.582482,0.000199,2]
[331292125,1720188643890,-347.62621,0.000199,2]
[331292127,1720188643900,-243.582482,0.000199,2]
[331292129,1720188643913,-151.0,0.000199,2]
[331292131,1720188643923,-151.0,0.000199,2]
[331292133,1720188643933,-151.0,0.000199,2]
[331292135,1720188643943,-151.0,0.000199,2]
[331292137,1720188643954,-151.0,0.000199,2]
[331292139,1720188643964,-296.05305,0.000199,2]
[331292141,1720188643975,-284.184843,0.000199,2]
[331292143,1720188643984,-151.0,0.000199,2]
[331292145,1720188643994,-284.184843,0.000199,2]
[331292147,1720188644004,-236.218391,0.000199,2]
[331292149,1720188644014,-236.218391,0.000199,2]
[331292151,1720188644023,-296935.85162,0.000199,3]
[331292153,1720188644033,-151.0,0.000199,2]
[331292155,1720188644043,-172.159462,0.000199,2]
[331292157,1720188644052,-151.0,0.000199,2]
[331292159,1720188644062,-151.0,0.000199,2]
[331292161,1720188644071,-172.159462,0.000199,2]
[331292163,1720188644081,-151.0,0.000199,2]
[331292165,1720188644091,-151.0,0.000199,2]
[331292167,1720188644100,-256.432669,0.000199,2]
[331292169,1720188644109,-151.0,0.000199,2]
[331292171,1720188644119,-256.432669,0.000199,2]
[331292173,1720188644128,-607.099053,0.000199,2]
[331292175,1720188644138,-607.099053,0.000199,2]
[331292177,1720188644147,-2158.714842,0.000199,2]
[331292179,1720188644157,-151.0,0.000199,2]
[331292181,1720188644167,-2158.714842,0.000199,2]
[331292183,1720188644176,-213.90304588,0.00019997,2]
[331292185,1720188644186,-1250.0,0.0002,2]
[331292187,1720188644195,-2443.07294432,0.0002,2]
[331292189,1720188644205,-1000.0,0.0002,2]
[331292191,1720188644214,-245.12,0.00020015,2]
[331292193,1720188644224,-523.142,0.00020118,2]
[331292196,1720188644233,-704.39,0.00020118,2]
[331292198,1720188644243,-649.313,0.00020118,2]
[331292200,1720188644253,-291.0,0.00020232,2]
[331292201,1720188644262,-1199.0,0.00020232,2]
[331292204,1720188644272,-1045.91,0.00020232,2]
[331292208,1720188644282,-749.10443427,0.00020438,2]
[331292213,1720188644292,-167.0,0.0002061,2]
[331292217,1720188644302,-606.82,0.00020619,2]
[331292221,1720188644311,-150.0,0.0002077,2]
[331292225,1720188644321,-150.0,0.0002077,2]
[331292229,1720188644330,-153.18864,0.0002077,2]
[331292235,1720188644340,-1000.0,0.00020777,2]
[331292240,1720188644349,-500.0,0.00020832,2]
[331292246,1720188644358,-7882.368689,0.000209,2]
[331292251,1720188644367,-1900.0,0.000209,7]
[331292257,1720188644377,-171.2311072,0.000209,2]
[331292262,1720188644386,-172.733294,0.00020915,2]
[331292266,1720188644396,-164.196939,0.00020915,2]
[331292270,1720188644408,-151.39,0.0002099,2]
[331292272,1720188644418,-151.39,0.0002099,2]
[331292275,1720188644427,-151.39,0.0002099,2]
[331292280,1720188644439,-151.39,0.0002099,2]
[331292281,1720188644450,-151.39,0.0002099,2]
[331292286,1720188644469,-150.01,0.00020999,2]
[331292291,1720188644481,-3834.67361687,0.00020999,2]
[331292294,1720188644491,-527229.00472086,0.00021,3]
[331292297,1720188644501,-225.33520988,0.00021,2]
[331292300,1720188644510,-445059.24022384,0.00021,3]
[331292303,1720188644520,-186.25145,0.00021,2]
[331292306,1720188644529,-186.25145,0.00021,2]
[331292309,1720188644540,-186.25145,0.00021,2]
[331292312,1720188644550,-186.25145,0.00021,2]
[331292315,1720188644559,-316.122699,0.00021,2]
[331292317,1720188644569,-316.122699,0.00021,2]
[331292320,1720188644578,-316.122699,0.00021,2]
[331292323,1720188644588,-316.122699,0.00021,2]
[331292326,1720188644598,-151.0,0.00021,2]
[331292329,1720188644607,-278.591956,0.00021,2]
[331292332,1720188644617,-151.0,0.00021,2]
[331292335,1720188644630,-151.0,0.00021,2]
[331292337,1720188644640,-151.0,0.00021,2]
[331292340,1720188644650,-151.0,0.00021,2]
[331292343,1720188644662,-151.0,0.00021,2]
[331292345,1720188644673,-171.435416,0.00021,2]
[331292347,1720188644683,-151.0,0.00021,2]
[331292348,1720188644692,-151.0,0.00021,2]
[331292349,1720188644701,-151.0,0.00021,2]
[331292350,1720188644726,-151.0,0.00021,2]
[331292351,1720188644740,-151.0,0.00021,2]
[331292352,1720188644750,-151.0,0.00021,2]
[331292353,1720188644759,-151.0,0.00021,2]
[331292354,1720188644769,-267.048936,0.00021,2]
[331292355,1720188644779,-151.0,0.00021,2]
[331292356,1720188644788,-151.0,0.00021,2]
[331292357,1720188644798,-231.947235,0.00021,2]
[331292358,1720188644808,-151.0,0.00021,2]
[331292359,1720188644817,-151.0,0.00021,2]
[331292360,1720188644826,-151.0,0.00021,2]
[331292361,1720188644835,-151.0,0.00021,2]
[331292362,1720188644844,-151.0,0.00021,2]
[331292363,1720188644860,-151.0,0.00021,2]
[331292365,1720188644871,-151.0,0.00021,2]
[331292366,1720188644880,-151.0,0.00021,2]
[331292367,1720188644891,-151.0,0.00021,2]
[331292368,1720188644901,-211.372286,0.00021,2]
[331292369,1720188644912,-211.372286,0.00021,2]
[331292370,1720188644922,-211.372286,0.00021,2]
[331292371,1720188644932,-211.372286,0.00021,2]
[331292372,1720188644941,-151.0,0.00021,2]
[331292373,1720188644951,-151.0,0.00021,2]
[331292374,1720188644961,-347.62621,0.00021,2]
[331292375,1720188644971,-347.62621,0.00021,2]
[331292376,1720188644980,-243.582482,0.00021,2]
[331292377,1720188644990,-243.582482,0.00021,2]
[331292378,1720188644999,-347.62621,0.00021,2]
[331292379,1720188645009,-347.62621,0.00021,2]
[331292380,1720188645018,-243.582482,0.00021,2]
[331292381,1720188645027,-243.582482,0.00021,2]
[331292382,1720188645037,-151.0,0.00021,2]
[331292383,1720188645052,-151.0,0.00021,2]
[331292384,1720188645087,-151.0,0.00021,2]
[331292385,1720188645096,-151.0,0.00021,2]
[331292386,1720188645106,-151.0,0.00021,2]
[331292387,1720188645115,-151.0,0.00021,2]
[331292388,1720188645125,-151.0,0.00021,2]
[331292389,1720188645135,-151.0,0.00021,2]
[331292390,1720188645146,-151.0,0.00021,2]
[331292391,1720188645156,-284.184843,0.00021,2]
[331292392,1720188645169,-284.184843,0.00021,2]
[331292393,1720188645179,-151.0,0.00021,2]
[331292394,1720188645188,-151.0,0.00021,2]
[331292395,1720188645201,-284.184843,0.00021,2]
[331292396,1720188645211,-284.184843,0.00021,2]
[331292397,1720188645220,-491.0,0.00021,3]
[331292398,1720188645230,-236.218391,0.00021,2]
[331292399,1720188645240,-236.218391,0.00021,2]
[331292400,1720188645250,-251.48397,0.00021,2]
[331292401,1720188645261,-251.48397,0.00021,2]
[331292402,1720188645271,-236.218391,0.00021,2]
[331292403,1720188645280,-236.218391,0.00021,2]
[331292404,1720188645290,-251.48397,0.00021,2]
[331292405,1720188645300,-251.48397,0.00021,2]
[331292406,1720188645316,-151.0,0.00021,2]
[331292407,1720188645328,-151.0,0.00021,2]
[331292408,1720188645339,-151.0,0.00021,2]
[331292409,1720188645348,-151.0,0.00021,2]
[331292410,1720188645358,-151.0,0.00021,2]
[331292411,1720188645368,-151.0,0.00021,2]
[331292412,1720188645378,-151.0,0.00021,2]
[331292413,1720188645388,-151.0,0.00021,2]
[331292414,1720188645397,-151.0,0.00021,2]
[331292415,1720188645409,-151.0,0.00021,2]
[331292416,1720188645418,-151.0,0.00021,2]
[331292417,1720188645428,-151.0,0.00021,2]
[331292418,1720188645438,-257.0,0.00021,2]
[331292419,1720188645447,-151.0,0.00021,2]
[331292420,1720188645456,-151.0,0.00021,2]
[331292421,1720188645466,-151.0,0.00021,2]
[331292422,1720188645476,-151.0,0.00021,2]
[331292423,1720188645486,-151.0,0.00021,2]
[331292424,1720188645495,-151.0,0.00021,2]
[331292425,1720188645505,-159.830519,0.00021,2]
[331292426,1720188645514,-855.319795,0.00021,2]
[331292427,1720188645524,-855.319795,0.00021,2]
[331292428,1720188645533,-855.319795,0.00021,2]
[331292429,1720188645542,-855.319795,0.00021,2]
[331292430,1720188645552,-151.0,0.00021,2]
[331292431,1720188645562,-151.0,0.00021,2]
[331292432,1720188645571,-151.0,0.00021,2]
[331292433,1720188645580,-1592.106454,0.00021,2]
[331292434,1720188645590,-1592.106454,0.00021,2]
[331292435,1720188645599,-151.0,0.00021,2]
[331292436,1720188645608,-151.0,0.00021,2]
[331292437,1720188645616,-1592.106454,0.00021,2]
[331292438,1720188645626,-1592.106454,0.00021,2]
[331292439,1720188645638,-151.0,0.00021,2]
[331292440,1720188645648,-151.0,0.00021,2]
[331292441,1720188645659,-151.0,0.00021,2]
[331292442,1720188645668,-151.0,0.00021,2]
[331292443,1720188645679,-151.0,0.00021,2]
[331292444,1720188645689,-151.0,0.00021,2]
[331292445,1720188645698,-194.290574,0.00021,2]
[331292446,1720188645708,-151.0,0.00021,2]
[331292448,1720188645720,-151.0,0.00021,2]
[331292449,1720188645731,-398.511702,0.00021,2]
[331292450,1720188645741,-398.511702,0.00021,2]
[331292451,1720188645751,-151.0,0.00021,2]
[331292452,1720188645760,-151.0,0.00021,2]
[331292453,1720188645770,-398.511702,0.00021,2]
[331292454,1720188645779,-398.511702,0.00021,2]
[331292455,1720188645788,-954.844291,0.00021,2]
[331292456,1720188645958,-954.844291,0.00021,2]
[331292457,1720188645968,-151.0,0.00021,2]
[331292458,1720188645983,-151.0,0.00021,2]
[331292459,1720188645992,-954.844291,0.00021,2]
[331292460,1720188646002,-954.844291,0.00021,2]
[331292461,1720188646011,-5394.692135,0.00021,2]
[331292462,1720188646020,-265.93792,0.00021,2]
[331292463,1720188646029,-5394.692135,0.00021,2]
[331292464,1720188646040,-265.93792,0.00021,2]
[331292465,1720188646049,-331.720925,0.00021,2]
[331292466,1720188646058,-265.93792,0.00021,2]
[331292467,1720188646068,-331.720925,0.00021,2]
[331292468,1720188646078,-265.93792,0.00021,2]
[331292469,1720188646087,-5394.692135,0.00021,2]
[331292470,1720188646096,-5394.692135,0.00021,2]
[331292471,1720188646105,-331.720925,0.00021,2]
[331292472,1720188646114,-331.720925,0.00021,2]
[331292473,1720188646124,-151.0,0.00021,2]
[331292474,1720188646134,-151.0,0.00021,2]
[331292475,1720188646143,-151.0,0.00021,2]
[331292476,1720188646153,-151.0,0.00021,2]
[331292477,1720188646164,-151.0,0.00021,2]
[331292478,1720188646174,-151.0,0.00021,2]
[331292479,1720188646184,-151.0,0.00021,2]
[331292480,1720188646193,-151.0,0.00021,2]
[331292481,1720188646203,-151.0,0.00021,2]
[331292482,1720188646213,-151.0,0.00021,2]
[331292483,1720188646222,-151.0,0.00021,2]
[331292484,1720188646231,-151.0,0.00021,2]
[331292485,1720188646240,-151.0,0.00021,2]
[331292486,1720188646249,-169.37594,0.00021,2]
[331292487,1720188646259,-255.167144,0.00021,2]
[331292488,1720188646268,-255.167144,0.00021,2]
[331292489,1720188646278,-255.167144,0.00021,2]
[331292490,1720188646288,-255.167144,0.00021,2]
[331292491,1720188646297,-151.0,0.00021,2]
[331292492,1720188646306,-151.0,0.00021,2]
[331292493,1720188646316,-151.0,0.00021,2]
[331292494,1720188646325,-151.0,0.00021,2]
[331292495,1720188646334,-151.0,0.00021,2]
[331292496,1720188646343,-151.0,0.00021,2]
[331292497,1720188646352,-151.0,0.00021,2]
[331292498,1720188646362,-172.159462,0.00021,2]
[331292499,1720188646371,-172.159462,0.00021,2]
[331292500,1720188646381,-151.0,0.00021,2]
[331292501,1720188646390,-151.0,0.00021,2]
[331292502,1720188646400,-151.0,0.00021,2]
[331292503,1720188646410,-151.0,0.00021,2]
[331292504,1720188646419,-172.159462,0.00021,2]
[331292505,1720188646431,-172.159462,0.00021,2]
[331292506,1720188646441,-151.0,0.00021,2]
[331292507,1720188646451,-151.0,0.00021,2]
[331292508,1720188646460,-151.0,0.00021,2]
[331292509,1720188646469,-256.432669,0.00021,2]
[331292510,1720188646478,-256.432669,0.00021,2]
[331292511,1720188646488,-151.0,0.00021,2]
[331292512,1720188646497,-151.0,0.00021,2]
[331292513,1720188646506,-256.432669,0.00021,2]
[331292514,1720188646516,-256.432669,0.00021,2]
[331292515,1720188646525,-607.099053,0.00021,2]
[331292516,1720188646536,-607.099053,0.00021,2]
[331292517,1720188646547,-607.099053,0.00021,2]
[331292518,1720188646557,-607.099053,0.00021,2]
[331292519,1720188646567,-2158.714842,0.00021,2]
[331292520,1720188646577,-151.0,0.00021,2]
[331292521,1720188646586,-2158.714842,0.00021,2]
[331292522,1720188646596,-151.0,0.00021,2]
[331292523,1720188646606,-2158.714842,0.00021,2]
[331292524,1720188646616,-2158.714842,0.00021,2]
[331292525,1720188646625,-1472.9372063,0.00021041,2]
[331292526,1720188646639,-3288.8845541,0.00021041,2]
[331292527,1720188646649,-23804.0731145,0.00021056,2]
[331292528,1720188646661,-1789.2907346,0.00021056,2]
[331292529,1720188646671,-190.85379111,0.00021077,2]
[331292530,1720188646691,-327.37681566,0.00021111,2]
[331292531,1720188646700,-1250.0,0.00021141,2]
[331292532,1720188646712,-1820.0,0.00021141,2]
[331292533,1720188646722,-1658.0,0.00021141,2]
[331292534,1720188646732,-444.0,0.00021141,2]
[331292535,1720188646742,-619.0,0.00021141,2]
[331292536,1720188646752,-449.0,0.00021141,2]
[331292537,1720188646761,-809.0,0.00021141,2]
[331292538,1720188646771,-201.991337,0.00021177,2]
[331292539,1720188646780,-167.0,0.00021291,2]
[331292540,1720188646789,-1313.0,0.00021318,2]
[331292541,1720188646799,-180.0,0.00021397,2]
[331292542,1720188646809,-201.991337,0.00021438,2]
[331292543,1720188646818,-208.16,0.00021644,2]
[331292544,1720188646827,-157.2,0.00021644,2]
[331292545,1720188646837,-204.22,0.00021644,2]
[331292546,1720188646846,-358.1,0.00021644,2]
[331292547,1720188646855,-154.74,0.00021644,2]
[331292548,1720188646864,-304.0,0.0002168,3]
[331292549,1720188646873,-201.991337,0.000217,2]
[331292550,1720188646883,-716.86932143,0.00021785,2]
[331292551,1720188646892,-716.86932143,0.00021785,2]
[331292552,1720188646901,-155.15660694,0.00021799,3]
[331292553,1720188646912,-500.0,0.00021819,2]
[331292554,1720188646921,-418.14,0.00021918,2]
[331292555,1720188646930,-249.68,0.00021918,2]
[331292556,1720188646939,-150.0,0.00021918,2]
[331292557,1720188646948,-151.0,0.00021918,2]
[331292558,1720188646957,-151.0,0.00021918,2]
[331292559,1720188646967,-201.991337,0.00021961,2]
[331292560,1720188646977,-165.716325,0.00021961,2]
[331292561,1720188646987,-172.733294,0.00021961,2]
[331292562,1720188646998,-164.196939,0.00021961,2]
[331292563,1720188647007,-167.0,0.00021971,2]
[331292564,1720188647016,-649.64800669,0.00022,2]
[331292565,1720188647025,-1300.0,0.00022,2]
[331292566,1720188647036,-173.0,0.00022,2]
[331292567,1720188647059,-300.0,0.00022254,2]
[331292568,1720188647078,-2100.0,0.00022254,2]
[331292569,1720188647098,-419.14,0.00022466,2]
[331292570,1720188647109,-150.0,0.00022495,2]
[331292571,1720188647123,-2384.97376412,0.00022499,7]
[331292572,1720188647136,-300.0,0.000225,8]
[331292573,1720188647152,-300.0,0.000226,8]
[331292574,1720188647166,-167.0,0.00022652,2]
[331292575,1720188647176,-300.0,0.000227,8]
[331292576,1720188647187,-11683.32736513,0.00022759,2]
[331292577,1720188647197,-11406.55301331,0.000228,5]
[331292578,1720188647208,-300.0,0.000228,8]
[331292579,1720188647219,-500.0,0.00022804,2]
[331292580,1720188647229,-800.0,0.00022877,2]
[331292581,1720188647239,-800.0,0.00022877,2]
[331292582,1720188647248,-800.0,0.00022877,2]
[331292583,1720188647258,-756.42,0.00022877,2]
[331292584,1720188647267,-6439.46193036,0.0002288,2]
[331292585,1720188647276,-606.82,0.00022883,2]
[331292586,1720188647284,-12747.27647142,0.00022889,3]
[331292587,1720188647294,-166.92313109,0.0002289,2]
[331292588,1720188647303,-160.66149107,0.0002289,2]
[331292589,1720188647322,-174.00446869,0.0002289,2]
[331292590,1720188647332,-661.98245728,0.0002289,2]
[331292591,1720188647341,-2000.0,0.000229,2]
[331292592,1720188647352,-491.0,0.000229,5]
[331292593,1720188647361,-982.0,0.000229,5]
[331292594,1720188647372,-982.0,0.000229,5]
[331292595,1720188647381,-1238.0,0.000229,8]
[331292596,1720188647390,-24591.7003063,0.00022974,2]
[331292597,1720188647400,-25379.3274982,0.00022974,2]
[331292598,1720188647410,-1851.5269341,0.00022974,2]
[331292600,1720188647419,-1913.7631336,0.00022974,2]
[331292601,1720188647428,-1526.6855915,0.00022974,2]
[331292603,1720188647437,-1580.4339766,0.00022974,2]
[331292605,1720188647446,-3408.8979757,0.00022974,2]
[331292607,1720188647455,-3528.9113972,0.00022974,2]
[331292609,1720188647465,-660863.80189268,0.0002299,5]
[331292610,1720188647674,-28595.34813619,0.0002299,5]
[331292611,1720188647686,-26032.77097106,0.0002299,5]
[331292612,1720188647697,-473.66,0.0002299,5]
[331292613,1720188647709,-326.45135773,0.0002299,5]
[331292614,1720188647722,-2400.74611323,0.0002299,5]
[331292615,1720188647735,-465.17730994,0.0002299,5]
[331292616,1720188647746,-838.95101476,0.0002299,5]
[331292617,1720188647759,-1945.274582,0.0002299,5]
[331292618,1720188647771,-718.2466,0.0002299,5]
[331292619,1720188647783,-489599.02076126,0.0002299,5]
[331292620,1720188647795,-975.50742252,0.0002299,5]
[331292621,1720188647807,-762.92,0.0002299,5]
[331292622,1720188648069,-619.15328092,0.0002299,5]
[331292623,1720188648423,-487.51701982,0.00014899,2]
[331292624,1720188648435,-1329.3668986,0.00014899,2]
[331292625,1720188648444,-193.62934922,0.00015579,2]
[331292626,1720188648456,-1058.00749563,0.00019352,7]
[331292627,1720188648466,-207615.18981087,0.0002299,5]
[331292628,1720188648477,-639578.20707779,0.0002299,5]
[331292629,1720188648488,-14037.07476569,0.0002299,5]
[331292630,1720188648554,-749.10443427,0.00021255,2]
[331292631,1720188648563,-135110.52504066,0.0002299,5]
[331292632,1720188648574,-55890.82999772,0.0002299,5]
[331292633,1720188648586,-179196.65988013,0.0002299,5]
[331292635,1720188651192,-151.0,0.000198,2]
[331292636,1720188651202,-150.01,0.00020999,2]
[331292637,1720188651212,-464.66486631,0.00020999,2]
[331292638,1720188651227,-324.95834368,0.00020999,2]
[331292639,1720188651239,-550.18428788,0.00020999,2]
[331292640,1720188651251,-1216.64158004,0.00020999,2]
[331292641,1720188651260,-724.91841996,0.00022073,2]
[331292642,1720188651272,-24.18601431,0.00022073,2]
[331292643,1720188651281,-475.81398569,0.0002299,5]
[331292644,1720188651293,-4913.29296927,0.0002299,5]
[331292645,1720188651304,-343293.1795202,0.0002299,5]
[331292646,1720188651315,-378.8899,0.0002299,5]
[331292647,1720188651327,-295.21458624,0.0002299,5]
[331292648,1720188651340,-334.94628946,0.0002299,5]
[331292649,1720188651351,-2026.77504163,0.0002299,5]
[331292650,1720188679219,1000.0,0.00026,120]
[331292651,1720189116608,-620.0,0.00013128,2]
[331292652,1720189606035,-200.6439511,0.00012017,2]
[331292653,1720189665787,290.66575246,0.00012017,2]
[331292654,1720189678330,200.0,0.00011771,2]
[331292655,1720189685233,1117.56127108,0.00012017,2]
[331292656,1720189690313,300.69422845,0.00012017,2]
[331292657,1720189701507,4909.74471622,0.00012017,2]
[331292660,1720189795897,150.13996471,0.00012935,2]
[331292661,1720189797379,4909.74471622,0.00012017,2]
[331292663,1720189836948,-825.99999941,0.00013849,2]
[331292664,1720189836960,-472.53583505,0.00013849,2]
[331292665,1720189836973,-36.92280293,0.00013849,2]
[331292666,1720189836986,-827.52356706,0.00013999,2]
[331292667,1720189836996,-1321.26166929,0.00014016,2]
[331292668,1720189837006,-492.14409897,0.00014099,2]
[331292669,1720189837015,-1581.75856231,0.00014499,2]
[331292670,1720189837031,-792.5901174,0.00014499,2]
[331292671,1720189837045,-1154.86373683,0.00014499,2]
[331292672,1720189837061,-579.48964727,0.00014499,2]
[331292673,1720189837072,-1358.49090015,0.00014566,2]
[331292674,1720189837084,-1320.26685001,0.00015399,2]
[331292675,1720189837096,-174.15,0.00015416,2]
[331292676,1720189837110,-167.0,0.00015831,2]
[331292677,1720189837120,-4316.16798347,0.00016172,2]
[331292678,1720189837136,-6678.31356158,0.00016172,2]
[331292679,1720189837146,-167.0,0.00016702,2]
[331292680,1720189837156,-296.92,0.00017253,2]
[331292681,1720189837166,-1585.74,0.0001726,2]
[331292682,1720189837175,-499.99,0.00017573,2]
[331292683,1720189837185,-167.0,0.00017573,2]
[331292684,1720189837195,-476.1671059,0.00017889,2]
[331292685,1720189837514,-2912.74339314,0.00017889,2]
[331292686,1720189837523,-438.06,0.00018072,2]
[331292687,1720189837534,-1514.0034346,0.00018081,2]
[331292688,1720189837546,-530.865,0.00018081,2]
[331292689,1720189837558,-630.10225962,0.00018081,2]
[331292690,1720189837570,-351.91624426,0.00018081,2]
[331292691,1720189837580,-111.13375574,0.00018081,2]
[331292692,1720189837591,-1974.8225,0.00018081,2]
[331292693,1720189837603,-289.76296096,0.00018081,2]
[331292694,1720189837612,-160.23703904,0.00018436,2]
[331292695,1720189837623,-89.76296096,0.00018436,2]
[331292696,1720189837632,-167.0,0.00018444,2]
[331292697,1720189837641,-446.61492222,0.0001852,2]
[331292700,1720189838082,-553.38507778,0.0001852,2]
[331292701,1720189838118,-56.2949222,0.00018717,2]
[331292702,1720189838345,-537.61656667,0.00018717,2]
[331292703,1720189838358,-291.826501,0.00018717,2]
[331292704,1720189838371,-533.68055691,0.00018717,2]
[331292705,1720189838381,-1816.88391842,0.00018717,2]
[331292706,1720189838390,-835.3769914,0.00018759,2]
[331292714,1720189838855,-213.01552815,0.00014966,2]
[331292715,1720189838866,-9699.63398023,0.00015535,2]
[331292716,1720189838876,-1068.27580459,0.00018759,2]
[331292717,1720189838886,-797.26942546,0.00018759,2]
[331292718,1720189838896,-192.28288346,0.00018825,2]
[331292719,1720189838906,-627.12487314,0.00018835,2]
[331292720,1720189838916,-627.12487314,0.00018835,2]
[331292721,1720189838926,-690.57146327,0.00018835,2]
[331292722,1720189838936,-781.51175288,0.00018835,2]
[331292723,1720189838946,-164.81,0.00018849,30]
[331292724,1720189838956,-190.64489647,0.00018864,2]
[331292725,1720189838968,-459.98278016,0.00018864,2]
[331292726,1720189838979,-193.62934922,0.00018864,2]
[331292727,1720189838990,-519.92895896,0.00018864,2]
[331292728,1720189839000,-643.51311969,0.00018864,2]
[331292729,1720189839010,-528.74533521,0.00018864,2]
[331292730,1720189839021,-227.17477303,0.00018919,2]
[331292731,1720189839031,-177.88518029,0.00018919,2]
[331292732,1720189839046,-208.59946816,0.00018999,2]
[331292733,1720189839060,-381.13784131,0.00018999,2]
[331292734,1720189839928,-197.26571762,0.00018999,2]
[331292736,1720189839938,-5000.0,0.00019,2]
[331292737,1720189839948,-242.03254915,0.00019077,2]
[331292740,1720189839958,-250.0,0.00019146,2]
[331292743,1720189839968,-6023.21798663,0.0001927,2]
[331292745,1720189839981,-418.57329772,0.0001927,2]
[331292746,1720189839994,-507.54424864,0.0001927,2]
[331292748,1720189840006,-381.33465368,0.0001927,2]
[331292751,1720189840017,-1530.03477773,0.0001927,2]
[331292752,1720189840029,-850.94665151,0.0001927,2]
[331292754,1720189840046,-1064.5676234,0.0001927,2]
[331292756,1720189840060,-4070.08297907,0.0001927,2]
[331292758,1720189840073,-537.22222227,0.0001927,2]
[331292911,1720189841881,-227.17477303,0.00018899,2]
[331292913,1720189841890,-6295.04806804,0.0001927,2]
[331292915,1720189841902,-418.78731084,0.0001927,2]
[331292917,1720189841913,-355.72425126,0.0001927,2]
[331293183,1720189849603,-3909.47465341,0.00015535,2]
[331293184,1720189849614,-278.2554,0.00015535,2]
[331293185,1720189849625,-6806.75149164,0.00015535,2]
[331293186,1720189849637,-1903.65279599,0.00018717,2]
[331293187,1720189849647,-193.62934922,0.00018835,2]
[331293188,1720189849657,-208.59946816,0.00018919,2]
[331293189,1720189849667,-1446.91592921,0.0001927,2]
[331293190,1720189849676,-250.0,0.00019326,2]
[331293191,1720189849685,-434.64921062,0.00019352,2]
[331293192,1720189849695,-833.28128399,0.00019389,2]
[331293193,1720189849704,-159.56,0.00019418,2]
[331293194,1720189849713,-197.03,0.00019558,2]
[331293195,1720189849723,-1250.0,0.0002,2]
[331293196,1720189849732,-76263.0,0.0002,2]
[331293197,1720189849742,-150.0,0.00020688,2]
[331293198,1720189849752,-11484.0,0.000208,3]
[331293199,1720189849761,-1000.0,0.00020835,2]
[331293200,1720189849771,-225.33520988,0.00021,2]
[331293201,1720189849780,-651.518,0.00021139,2]
[331293202,1720189849789,-444.0,0.00021139,2]
[331293203,1720189849800,-619.0,0.00021139,2]
[331293204,1720189849810,-809.0,0.00021139,2]
[331293205,1720189849821,-449.0,0.00021139,2]
[331293206,1720189849830,-228.843835,0.0002137,2]
[331293207,1720189849840,-150.0,0.00021454,4]
[331293208,1720189849851,-11484.0,0.000216,5]
[331293209,1720189849862,-197.75,0.00021644,2]
[331293210,1720189849871,-157.2,0.00021644,2]
[331293211,1720189849881,-348.45,0.00021918,2]
[331293212,1720189849890,-150.0,0.00021918,2]
[331293213,1720189849899,-1300.0,0.00022,2]
[331293214,1720189849908,-173.0,0.00022,2]
[331293215,1720189849918,-228.843835,0.00022192,2]